fUST/lending_fUST_20241204
["ID","MTS","AMOUNT","RATE_DAILY","PERIOD"]
[344065479,1733269843074,-1379.75,0.00030136,7]
[344065481,1733269843083,-1065.9,0.00030136,7]
[344065483,1733269843093,-1065.9,0.00030136,7]
[344065485,1733269843102,-1065.9,0.00030136,7]
[344065487,1733269843112,-1065.9,0.00030136,7]
[344065489,1733269843123,-188.4178618,0.00030136,7]
[344065590,1733269845713,-877.4821382,0.00030136,7]
[344065592,1733269845723,-500.0,0.00030136,7]
[344065594,1733269845732,-1065.9,0.00030136,7]
[344065596,1733269845743,-297.95188215,0.00030136,7]
[344065777,1733269862164,1169.27083333,0.00025642,2]
[344065786,1733270079023,162.030593,0.00013973,2]
[344065794,1733270431838,150.0,0.00029655,120]
[344065807,1733270721303,162.254721,0.00013973,2]
[344065809,1733270832130,-298.82218761,0.00026914,2]
[344065810,1733270835164,-870.44864572,0.00026914,2]
[344065811,1733270835188,-160.114495,0.00026967,2]
[344065812,1733270835212,-500.0,0.00027397,2]
[344065813,1733270835233,-197.851068,0.00028152,2]
[344065814,1733270835255,-300.0,0.00028335,2]
[344065815,1733270835275,-300.0,0.00028335,2]
[344065816,1733270835296,-173.0,0.00028335,2]
[344065817,1733270835316,-6112.34113819,0.00028336,2]
[344065818,1733270849097,-2959.41171852,0.00028336,2]
[344065820,1733270955119,-1169.27083333,0.00026933,2]
[344065821,1733270955143,-300.0,0.00027802,2]
[344065822,1733270955169,-300.0,0.00027802,2]
[344065823,1733270955192,-13787.4146513,0.00027803,2]
[344065830,1733271027397,1169.27083333,0.00027137,2]
[344065979,1733271033403,-6398.83707069,0.00028336,2]
[344065981,1733271033413,-168.752019,0.00028625,2]
[344065983,1733271033422,-300.0,0.00028641,2]
[344065985,1733271033431,-300.0,0.00028641,2]
[344065987,1733271033442,-1225.0526919,0.00028642,2]
[344065989,1733271033451,-500.0,0.00028767,4]
[344065991,1733271033461,-155.47257778,0.0002896,2]
[344065993,1733271033471,-320.77705,0.00029003,2]
[344065995,1733271033481,-153.0,0.0002926,30]
[344065997,1733271033491,-162.2,0.00029481,7]
[344065999,1733271033501,-600.0,0.00029767,2]
[344066001,1733271033511,-2965.15292965,0.00029921,2]
[344066004,1733271033521,-5487.089084,0.0003,2]
[344066007,1733271033531,-159.0,0.0003,7]
[344066010,1733271033552,-284.0,0.0003,2]
[344066013,1733271033566,-156.0,0.0003,2]
[344066016,1733271033576,-185.981352,0.00030022,2]
[344066019,1733271033587,-6666.0,0.00030036,2]
[344066022,1733271033598,-1003.59271836,0.00030036,2]
[344066025,1733271033608,-779.65449004,0.00030036,2]
[344066028,1733271033617,-603.35848693,0.00030077,2]
[344066031,1733271033627,-473.42,0.00030126,10]
[344066034,1733271033636,-818.01,0.00030126,10]
[344066036,1733271033646,-500.0,0.00030135,2]
[344066039,1733271033655,-499.71301692,0.00030135,2]
[344066041,1733271033664,-500.0,0.00030135,2]
[344066043,1733271033674,-500.0,0.00030135,2]
[344066045,1733271033683,-479.51787795,0.00030135,2]
[344066047,1733271033693,-422.94275978,0.00030135,2]
[344066049,1733271033702,-500.0,0.00030135,2]
[344066051,1733271033711,-500.0,0.00030135,2]
[344066053,1733271033721,-500.0,0.00030135,2]
[344066055,1733271033730,-500.0,0.00030135,2]
[344066058,1733271033740,-650.0,0.00030135,2]
[344066059,1733271033750,-500.0,0.00030135,2]
[344066061,1733271033759,-500.0,0.00030135,2]
[344066063,1733271033769,-391.8610075,0.00030135,2]
[344066066,1733271033778,-290.69199555,0.00030135,2]
[344066068,1733271033788,-418.4249317,0.00030135,2]
[344066070,1733271033798,-499.99999999,0.00030135,2]
[344066071,1733271033807,-194.51159275,0.00030135,7]
[344066073,1733271033816,-24169.0915429,0.00030136,2]
[344066265,1733271037939,-690.08,0.00030126,3]
[344066267,1733271037949,-18566.965339,0.00030136,2]
[344066269,1733271037959,-272.80803664,0.00030136,2]
[344066271,1733271037968,-202.04811785,0.00030136,7]
[344066273,1733271037977,-500.0,0.00030136,7]
[344066275,1733271037987,-1065.9,0.00030136,7]
[344066277,1733271037996,-500.0,0.00030136,7]
[344066279,1733271038006,-500.0,0.00030136,7]
[344066281,1733271038015,-1065.9,0.00030136,7]
[344066283,1733271038025,-500.0,0.00030136,7]
[344066285,1733271038034,-500.0,0.00030136,7]
[344066287,1733271038043,-1065.9,0.00030136,7]
[344066289,1733271038051,-500.0,0.00030136,7]
[344066291,1733271038061,-500.0,0.00030136,7]
[344066293,1733271038071,-1065.9,0.00030136,7]
[344066295,1733271038080,-500.0,0.00030136,7]
[344066297,1733271038089,-1065.9,0.00030136,7]
[344066299,1733271038098,-500.0,0.00030136,7]
[344066301,1733271038119,-556.82402473,0.00030136,7]
[344066303,1733271038129,-1065.9,0.00030136,7]
[344066305,1733271038138,-500.0,0.00030136,7]
[344066307,1733271038148,-1066.08,0.00030136,7]
[344066309,1733271038161,-500.0,0.00030136,7]
[344066311,1733271038171,-500.0,0.00030136,7]
[344066313,1733271038182,-500.0,0.00030136,7]
[344066315,1733271038194,-500.0,0.00030136,7]
[344066317,1733271038204,-500.0,0.00030136,7]
[344066319,1733271038214,-500.0,0.00030136,7]
[344066321,1733271038223,-500.0,0.00030136,7]
[344066323,1733271038233,-500.0,0.00030136,7]
[344066325,1733271038243,-500.0,0.00030136,7]
[344066327,1733271038252,-500.0,0.00030136,7]
[344066328,1733271038262,-500.0,0.00030136,7]
[344066329,1733271038272,-500.0,0.00030136,7]
[344066330,1733271038282,-500.0,0.00030136,7]
[344066331,1733271038291,-500.0,0.00030136,7]
[344066332,1733271038300,-500.0,0.00030136,7]
[344066333,1733271038309,-500.0,0.00030136,7]
[344066334,1733271038318,-500.0,0.00030136,7]
[344066335,1733271038327,-500.0,0.00030136,7]
[344066336,1733271038336,-500.0,0.00030136,7]
[344066337,1733271038346,-500.0,0.00030136,7]
[344066338,1733271038355,-429.80853762,0.00030136,7]
[344066339,1733271038364,-500.0,0.00030136,7]
[344066340,1733271038373,-500.0,0.00030136,7]
[344066341,1733271038383,-974.5,0.00030136,7]
[344066342,1733271038392,-974.5,0.00030136,7]
[344066343,1733271038401,-500.0,0.00030136,7]
[344066344,1733271038410,-974.5,0.00030136,7]
[344066345,1733271038420,-500.0,0.00030136,7]
[344066346,1733271038430,-974.5,0.00030136,7]
[344066347,1733271038439,-500.0,0.00030136,7]
[344066348,1733271038447,-974.5,0.00030136,7]
[344066349,1733271038456,-251.11185992,0.00030136,7]
[344066350,1733271038465,-974.5,0.00030136,7]
[344066351,1733271038474,-974.5,0.00030136,7]
[344066352,1733271038483,-974.5,0.00030136,7]
[344066353,1733271038492,-500.0,0.00030136,7]
[344066354,1733271038501,-974.5,0.00030136,7]
[344066355,1733271038511,-974.5,0.00030136,7]
[344066356,1733271038520,-974.5,0.00030136,7]
[344066357,1733271038529,-974.5,0.00030136,7]
[344066358,1733271038538,-500.0,0.00030136,7]
[344066359,1733271038547,-974.5,0.00030136,7]
[344066360,1733271038557,-974.5,0.00030136,7]
[344066361,1733271038566,-974.5,0.00030136,7]
[344066362,1733271038577,-974.5,0.00030136,7]
[344066363,1733271038586,-974.5,0.00030136,7]
[344066364,1733271038596,-500.0,0.00030136,7]
[344066365,1733271038606,-974.5,0.00030136,7]
[344066367,1733271038615,-555.52133593,0.00030136,7]
[344066369,1733271038624,-974.5,0.00030136,7]
[344066371,1733271038633,-974.5,0.00030136,7]
[344066373,1733271038642,-974.5,0.00030136,7]
[344066375,1733271038651,-974.5,0.00030136,7]
[344066377,1733271038661,-974.5,0.00030136,7]
[344066379,1733271038670,-500.0,0.00030136,7]
[344066381,1733271038679,-974.63534592,0.00030136,7]
[344066383,1733271038689,-500.0,0.00030136,7]
[344066385,1733271038699,-530.43701833,0.00030136,7]
[344066387,1733271038708,-500.0,0.00030136,7]
[344066389,1733271038720,-500.0,0.00030136,7]
[344066391,1733271038730,-510.1760704,0.00030136,7]
[344066393,1733271038739,-500.0,0.00030136,7]
[344066395,1733271038748,-500.0,0.00030136,7]
[344066397,1733271038758,-500.0,0.00030136,7]
[344066399,1733271038767,-500.0,0.00030136,7]
[344066401,1733271038776,-500.0,0.00030136,7]
[344066403,1733271038786,-500.0,0.00030136,7]
[344066405,1733271038796,-500.0,0.00030136,7]
[344066407,1733271038805,-248.90530956,0.00030136,7]
[344066409,1733271038814,-502.98407879,0.00030136,7]
[344066411,1733271038823,-500.0,0.00030136,7]
[344066413,1733271038832,-500.0,0.00030136,7]
[344066415,1733271038842,-500.0,0.00030136,7]
[344066434,1733271039007,-500.0,0.00030136,7]
[344066436,1733271039020,-500.0,0.00030136,7]
[344066438,1733271039029,-500.0,0.00030136,7]
[344066440,1733271039039,-500.0,0.00030136,7]
[344066442,1733271039049,-295.39826421,0.00030136,7]
[344066444,1733271039057,-500.0,0.00030136,7]
[344066446,1733271039067,-500.0,0.00030136,7]
[344066448,1733271039076,-500.0,0.00030136,7]
[344066450,1733271039086,-354.54082786,0.00030136,7]
[344066452,1733271039095,-500.0,0.00030136,7]
[344066454,1733271039116,-500.0,0.00030136,7]
[344066456,1733271039125,-409.11355314,0.00030136,7]
[344066458,1733271039135,-500.0,0.00030136,7]
[344066460,1733271039145,-500.0,0.00030136,7]
[344066462,1733271039154,-500.0,0.00030136,7]
[344066464,1733271039163,-500.0,0.00030136,7]
[344066466,1733271039173,-500.0,0.00030136,7]
[344066468,1733271039186,-500.0,0.00030136,7]
[344066470,1733271039195,-500.0,0.00030136,7]
[344066472,1733271039204,-500.0,0.00030136,7]
[344066474,1733271039215,-500.0,0.00030136,7]
[344066476,1733271039224,-509.66346961,0.00030136,7]
[344066478,1733271039234,-500.0,0.00030136,7]
[344066480,1733271039244,-284.64068913,0.00030136,7]
[344066506,1733271039477,-215.35931087,0.00030136,7]
[344066508,1733271039487,-113.46421341,0.00030136,7]
[344066510,1733271039499,-386.53578659,0.00030136,7]
[344066512,1733271039510,-500.0,0.00030136,7]
[344066515,1733271039519,-500.0,0.00030136,7]
[344066517,1733271039529,-500.0,0.00030136,7]
[344066519,1733271039539,-176.07373635,0.00030136,7]
[344066550,1733271039835,-323.92626365,0.00030136,7]
[344066552,1733271039845,-500.0,0.00030136,7]
[344066555,1733271039856,-76.64512874,0.00030136,7]
[344067171,1733271050592,464.80127709,0.00024953,5]
[344068448,1733271063820,173.553976,0.00030137,120]
[344069101,1733271070753,181.414656,0.00027733,2]
[344072031,1733271102959,995.20121532,0.00027137,2]
[344072032,1733271102980,174.06961801,0.00027137,2]
[344072595,1733271335956,162.411424,0.00013973,2]
[344072625,1733271885295,500.0,0.00030988,120]
[344072646,1733272025205,162.710577,0.00013973,2]
[344072648,1733272036150,-1169.27083333,0.000272,2]
[344072649,1733272036170,-168.554242,0.00027459,2]
[344072650,1733272036191,-197.851068,0.00028254,2]
[344072651,1733272036210,-181.4146578,0.00028399,2]
[344072652,1733272036234,-1777.43485579,0.000299,2]
[344072653,1733272036254,-543.13034252,0.00029916,2]
[344072654,1733272036273,-443.59,0.00029948,15]
[344072655,1733272036293,-1154.126,0.00029948,15]
[344072656,1733272036313,-4232.67711076,0.00029995,2]
[344072658,1733272046109,-8719.32288924,0.00029995,2]
[344072659,1733272046133,-300.0,0.00029996,2]
[344072660,1733272046153,-300.0,0.00029996,2]
[344072661,1733272046174,-17673.26987984,0.0003,30]
[344072669,1733272126438,29028.086525,0.000109,2]
[344072670,1733272126464,5000.0,0.000109,2]
[344072671,1733272126498,36799.55743737,0.000109,2]
[344072677,1733272151351,-1867.61522715,0.000176,2]
[344072678,1733272151379,-661.79,0.0001998,3]
[344072679,1733272151400,-330.89,0.0001998,3]
[344072680,1733272151420,-300.0,0.00019989,2]
[344072681,1733272151441,-300.0,0.00019989,2]
[344072682,1733272151464,-98869.86423238,0.0001999,2]
[344072683,1733272151485,-705.5960481,0.00020273,2]
[344072684,1733272151506,-1323.58,0.0002135,3]
[344072685,1733272151527,-661.78,0.0002135,3]
[344072686,1733272151548,-420.0,0.00021766,2]
[344072687,1733272151569,-420.0,0.00021988,2]
[344072688,1733272151589,-587.0,0.00023701,2]
[344072689,1733272151610,-587.0,0.00024187,2]
[344072690,1733272151631,-30268.43509758,0.00025,2]
[344072691,1733272151651,-823.0,0.00025808,2]
[344072692,1733272151672,-506.0,0.00026605,2]
[344072693,1733272151694,-1169.27083333,0.00027005,2]
[344072694,1733272198043,1169.27083333,0.000272,2]
[344072721,1733272232041,-168.752019,0.00028385,2]
[344072722,1733272232050,-1160.71790293,0.000284,2]
[344072723,1733272232062,-638.97718917,0.000284,2]
[344072724,1733272232071,-700.0,0.00028833,2]
[344072725,1733272232081,-300.0,0.00029999,2]
[344072726,1733272232090,-342.42666817,0.0003,30]
[344072861,1733272238738,-2614.21550546,0.0003,30]
[344072875,1733272238862,-601.926936,0.0003,30]
[344072877,1733272238874,-1812.33113915,0.0003,30]
[344072879,1733272238884,-248.0,0.0003,2]
[344072881,1733272238893,-505.5153969,0.0003,2]
[344072883,1733272238903,-324.22683165,0.0003,15]
[344072885,1733272238915,-242.53896835,0.0003,15]
[344072887,1733272238924,-1465.54998665,0.00030036,2]
[344073010,1733272240080,-5200.45001335,0.00030036,2]
[344073012,1733272240090,-666.0,0.00030036,2]
[344073014,1733272240100,-903.23344647,0.00030036,2]
[344073016,1733272240110,-2000.0,0.000301,7]
[344073018,1733272240119,-1000.0,0.000301,7]
[344073020,1733272240129,-681.67,0.00030126,10]
[344073021,1733272240138,-568.06,0.00030126,10]
[344073023,1733272240148,-165.45,0.00030126,3]
[344073026,1733272240158,-1800.99669903,0.00030135,2]
[344073027,1733272240167,-158.10475109,0.00030135,2]
[344073030,1733272240177,-571.54541703,0.00030135,2]
[344073032,1733272240186,-500.0,0.00030135,2]
[344073034,1733272240196,-35390.20432625,0.00030136,2]
[344073036,1733272240205,-504.04743798,0.00030136,7]
[344073038,1733272240215,-161.2388417,0.00030136,7]
[344073040,1733272240224,-500.0,0.00030136,7]
[344073042,1733272240234,-500.0,0.00030136,7]
[344073044,1733272240243,-500.0,0.00030136,7]
[344073046,1733272240252,-500.0,0.00030136,7]
[344073048,1733272240261,-500.0,0.00030136,7]
[344073050,1733272240271,-500.0,0.00030136,7]
[344073052,1733272240281,-500.0,0.00030136,7]
[344073054,1733272240290,-500.0,0.00030136,7]
[344073056,1733272240300,-500.0,0.00030136,7]
[344073058,1733272240309,-500.0,0.00030136,7]
[344073059,1733272240319,-500.0,0.00030136,7]
[344073062,1733272240328,-500.0,0.00030136,7]
[344073064,1733272240338,-500.0,0.00030136,7]
[344073065,1733272240347,-500.0,0.00030136,7]
[344073067,1733272240356,-500.0,0.00030136,7]
[344073069,1733272240366,-500.0,0.00030136,7]
[344073071,1733272240376,-500.0,0.00030136,7]
[344073074,1733272240386,-500.0,0.00030136,7]
[344073075,1733272240395,-500.0,0.00030136,7]
[344073078,1733272240405,-224.37217497,0.00030136,7]
[344073080,1733272240415,-500.0,0.00030136,7]
[344073082,1733272240425,-500.0,0.00030136,7]
[344073084,1733272240435,-500.0,0.00030136,7]
[344073086,1733272240445,-500.0,0.00030136,7]
[344073088,1733272240455,-500.0,0.00030136,7]
[344073090,1733272240465,-500.0,0.00030136,7]
[344073092,1733272240474,-500.0,0.00030136,7]
[344073094,1733272240484,-500.0,0.00030136,7]
[344073096,1733272240494,-830.79,0.00030136,7]
[344073098,1733272240503,-500.0,0.00030136,7]
[344073100,1733272240513,-500.0,0.00030136,7]
[344073102,1733272240522,-830.79,0.00030136,7]
[344073104,1733272240534,-1166.15,0.00030136,7]
[344073106,1733272240549,-510.81640406,0.00030136,7]
[344073108,1733272240558,-500.0,0.00030136,7]
[344073110,1733272240568,-830.79,0.00030136,7]
[344073112,1733272240578,-1166.15,0.00030136,7]
[344073114,1733272240588,-500.0,0.00030136,7]
[344073116,1733272240597,-830.79,0.00030136,7]
[344073118,1733272240607,-1166.15,0.00030136,7]
[344073119,1733272240617,-500.0,0.00030136,7]
[344073121,1733272240627,-500.0,0.00030136,7]
[344073124,1733272240638,-830.79,0.00030136,7]
[344073125,1733272240647,-1166.15,0.00030136,7]
[344073127,1733272240656,-500.0,0.00030136,7]
[344073129,1733272240666,-500.0,0.00030136,7]
[344073132,1733272240675,-830.79,0.00030136,7]
[344073133,1733272240685,-1166.15,0.00030136,7]
[344073135,1733272240694,-500.0,0.00030136,7]
[344073137,1733272240703,-500.0,0.00030136,7]
[344073139,1733272240713,-830.79,0.00030136,7]
[344073141,1733272240722,-1166.15,0.00030136,7]
[344073143,1733272240731,-500.0,0.00030136,7]
[344073145,1733272240740,-830.79,0.00030136,7]
[344073148,1733272240750,-506.1532842,0.00030136,7]
[344073149,1733272240760,-1166.15,0.00030136,7]
[344073152,1733272240770,-500.0,0.00030136,7]
[344073153,1733272240783,-500.0,0.00030136,7]
[344073155,1733272240793,-830.79,0.00030136,7]
[344073157,1733272240802,-1166.15,0.00030136,7]
[344073159,1733272240812,-500.0,0.00030136,7]
[344073161,1733272240821,-496.27364895,0.00030136,7]
[344073163,1733272240831,-830.79,0.00030136,7]
[344073165,1733272240841,-1166.15,0.00030136,7]
[344073168,1733272240851,-830.79,0.00030136,7]
[344073170,1733272240860,-1166.15,0.00030136,7]
[344073171,1733272240870,-500.0,0.00030136,7]
[344073173,1733272240879,-830.79,0.00030136,7]
[344073176,1733272240889,-1166.15,0.00030136,7]
[344073178,1733272240899,-500.0,0.00030136,7]
[344073179,1733272240908,-830.79,0.00030136,7]
[344073181,1733272240917,-1166.15,0.00030136,7]
[344073183,1733272240927,-500.0,0.00030136,7]
[344073186,1733272240936,-500.0,0.00030136,7]
[344073187,1733272240946,-830.79,0.00030136,7]
[344073189,1733272240955,-500.0,0.00030136,7]
[344073192,1733272240965,-500.0,0.00030136,7]
[344073193,1733272240976,-830.79,0.00030136,7]
[344073195,1733272240985,-500.0,0.00030136,7]
[344073197,1733272240994,-1166.15,0.00030136,7]
[344073199,1733272241003,-481.50085562,0.00030136,7]
[344073202,1733272241015,-500.0,0.00030136,7]
[344073204,1733272241024,-830.79,0.00030136,7]
[344073206,1733272241038,-1166.15,0.00030136,7]
[344073208,1733272241048,-500.0,0.00030136,7]
[344073210,1733272241057,-830.79,0.00030136,7]
[344073212,1733272241066,-500.0,0.00030136,7]
[344073214,1733272241076,-1166.15,0.00030136,7]
[344073216,1733272241085,-500.0,0.00030136,7]
[344073218,1733272241095,-830.79,0.00030136,7]
[344073220,1733272241104,-500.0,0.00030136,7]
[344073222,1733272241113,-1166.15,0.00030136,7]
[344073224,1733272241123,-500.0,0.00030136,7]
[344073226,1733272241132,-830.79,0.00030136,7]
[344073228,1733272241142,-1166.15,0.00030136,7]
[344073230,1733272241151,-500.0,0.00030136,7]
[344073232,1733272241160,-830.79,0.00030136,7]
[344073234,1733272241170,-1166.15,0.00030136,7]
[344073236,1733272241179,-500.0,0.00030136,7]
[344073238,1733272241188,-500.0,0.00030136,7]
[344073240,1733272241197,-830.79,0.00030136,7]
[344073242,1733272241207,-1166.15,0.00030136,7]
[344073244,1733272241217,-500.0,0.00030136,7]
[344073246,1733272241226,-830.79,0.00030136,7]
[344073248,1733272241236,-500.0,0.00030136,7]
[344073250,1733272241245,-1166.15,0.00030136,7]
[344073252,1733272241254,-500.0,0.00030136,7]
[344073254,1733272241263,-500.0,0.00030136,7]
[344073256,1733272241273,-830.79,0.00030136,7]
[344073258,1733272241285,-500.0,0.00030136,7]
[344073260,1733272241294,-500.0,0.00030136,7]
[344073262,1733272241303,-1166.15,0.00030136,7]
[344073264,1733272241313,-500.0,0.00030136,7]
[344073266,1733272241322,-830.87588386,0.00030136,7]
[344073268,1733272241331,-500.0,0.00030136,7]
[344073270,1733272241340,-500.0,0.00030136,7]
[344073272,1733272241349,-1166.15,0.00030136,7]
[344073274,1733272241358,-500.0,0.00030136,7]
[344073276,1733272241367,-307.0590448,0.00030136,7]
[344073278,1733272241376,-500.0,0.00030136,7]
[344073280,1733272241385,-500.0,0.00030136,7]
[344073282,1733272241395,-1166.15,0.00030136,7]
[344073284,1733272241404,-500.0,0.00030136,7]
[344073286,1733272241413,-500.0,0.00030136,7]
[344073288,1733272241422,-1166.29,0.00030136,7]
[344073290,1733272241432,-500.0,0.00030136,7]
[344073292,1733272241442,-500.0,0.00030136,7]
[344073294,1733272241451,-500.0,0.00030136,7]
[344073296,1733272241460,-456.43374747,0.00030136,7]
[344073298,1733272241469,-500.0,0.00030136,7]
[344073300,1733272241478,-500.0,0.00030136,7]
[344073303,1733272241487,-500.0,0.00030136,7]
[344073305,1733272241496,-500.0,0.00030136,7]
[344073307,1733272241506,-572.6702713,0.00030136,7]
[344073309,1733272241516,-500.0,0.00030136,7]
[344073311,1733272241525,-500.0,0.00030136,7]
[344073313,1733272241540,-500.0,0.00030136,7]
[344073315,1733272241549,-500.0,0.00030136,7]
[344073317,1733272241558,-500.0,0.00030136,7]
[344073319,1733272241567,-500.0,0.00030136,7]
[344073321,1733272241577,-500.0,0.00030136,7]
[344073323,1733272241586,-500.0,0.00030136,7]
[344073325,1733272241595,-500.0,0.00030136,7]
[344073327,1733272241604,-500.0,0.00030136,7]
[344073329,1733272241614,-500.0,0.00030136,7]
[344073331,1733272241624,-500.0,0.00030136,7]
[344073333,1733272241633,-500.0,0.00030136,7]
[344073335,1733272241642,-500.0,0.00030136,7]
[344073337,1733272241651,-504.7536933,0.00030136,7]
[344073339,1733272241661,-500.0,0.00030136,7]
[344073341,1733272241670,-500.0,0.00030136,7]
[344073343,1733272241679,-500.0,0.00030136,7]
[344073345,1733272241688,-500.0,0.00030136,7]
[344073347,1733272241698,-500.0,0.00030136,7]
[344073349,1733272241707,-500.0,0.00030136,7]
[344073351,1733272241716,-500.0,0.00030136,7]
[344073353,1733272241725,-500.0,0.00030136,7]
[344073355,1733272241734,-500.0,0.00030136,7]
[344073357,1733272241743,-500.0,0.00030136,7]
[344073359,1733272241752,-487.67887409,0.00030136,7]
[344073361,1733272241761,-500.0,0.00030136,7]
[344073363,1733272241771,-500.0,0.00030136,7]
[344073365,1733272241780,-346.4721628,0.00030136,7]
[344073366,1733272241790,-282.68516075,0.00030136,7]
[344073368,1733272241799,-500.0,0.00030136,7]
[344073370,1733272241808,-183.4267402,0.00030136,7]
[344073372,1733272241817,-501.53772456,0.00030136,7]
[344073374,1733272241828,-500.0,0.00030136,7]
[344073377,1733272241837,-500.0,0.00030136,7]
[344073379,1733272241846,-500.0,0.00030136,7]
[344073381,1733272241857,-500.0,0.00030136,7]
[344073383,1733272241867,-500.0,0.00030136,7]
[344073385,1733272241876,-500.0,0.00030136,7]
[344073386,1733272241885,-500.0,0.00030136,7]
[344073388,1733272241896,-500.0,0.00030136,7]
[344073390,1733272241905,-500.0,0.00030136,7]
[344073393,1733272241914,-500.0,0.00030136,7]
[344073394,1733272241923,-500.0,0.00030136,7]
[344073396,1733272241932,-500.0,0.00030136,7]
[344073398,1733272241942,-573.91742598,0.00030136,7]
[344073400,1733272241951,-500.0,0.00030136,7]
[344073402,1733272241960,-500.0,0.00030136,7]
[344073404,1733272241969,-552.91081548,0.00030136,7]
[344073406,1733272241978,-500.0,0.00030136,7]
[344073408,1733272241987,-500.0,0.00030136,7]
[344073410,1733272241997,-579.82,0.00030136,7]
[344073412,1733272242006,-500.0,0.00030136,7]
[344073414,1733272242016,-579.82,0.00030136,7]
[344073416,1733272242026,-500.0,0.00030136,7]
[344073418,1733272242040,-579.82,0.00030136,7]
[344073420,1733272242049,-500.0,0.00030136,7]
[344073422,1733272242060,-579.82,0.00030136,7]
[344073424,1733272242069,-170.63204244,0.00030136,7]
[344073426,1733272242079,-579.82,0.00030136,7]
[344073428,1733272242088,-579.82,0.00030136,7]
[344073430,1733272242097,-579.82,0.00030136,7]
[344073432,1733272242106,-501.3089353,0.00030136,7]
[344073434,1733272242116,-579.82,0.00030136,7]
[344073436,1733272242125,-579.82,0.00030136,7]
[344073438,1733272242134,-579.82,0.00030136,7]
[344073440,1733272242143,-579.82,0.00030136,7]
[344073443,1733272242153,-500.0,0.00030136,7]
[344073445,1733272242162,-579.82,0.00030136,7]
[344073447,1733272242172,-500.0,0.00030136,7]
[344073449,1733272242181,-504.93221936,0.00030136,7]
[344073451,1733272242190,-579.82,0.00030136,7]
[344073453,1733272242199,-500.0,0.00030136,7]
[344073455,1733272242208,-579.82,0.00030136,7]
[344073457,1733272242217,-500.0,0.00030136,7]
[344073459,1733272242226,-500.0,0.00030136,7]
[344073461,1733272242236,-579.82,0.00030136,7]
[344073463,1733272242245,-579.82,0.00030136,7]
[344073465,1733272242254,-579.82,0.00030136,7]
[344073466,1733272242263,-579.82,0.00030136,7]
[344073468,1733272242273,-579.82,0.00030136,7]
[344073470,1733272242285,-500.0,0.00030136,7]
[344073472,1733272242294,-579.82,0.00030136,7]
[344073474,1733272242303,-500.0,0.00030136,7]
[344073476,1733272242312,-579.82,0.00030136,7]
[344073478,1733272242321,-500.0,0.00030136,7]
[344073480,1733272242330,-579.82,0.00030136,7]
[344073482,1733272242339,-500.0,0.00030136,7]
[344073484,1733272242348,-579.82,0.00030136,7]
[344073486,1733272242357,-498.15508231,0.00030136,7]
[344073488,1733272242366,-579.96393231,0.00030136,7]
[344073490,1733272242376,-500.0,0.00030136,7]
[344073492,1733272242385,-500.0,0.00030136,7]
[344073494,1733272242394,-500.0,0.00030136,7]
[344073496,1733272242404,-500.0,0.00030136,7]